bitfinex/quotes_BTCUSD_20241010
["timestamp","ask_amount","ask_price","bid_price","bid_amount"]
[1728599527246,0.010172,60118.0,60117.0,0.9983173]
[1728599531759,0.010172,60118.0,60117.0,1.0931173]
[1728599534494,0.010172,60118.0,60117.0,1.21869734]
[1728599543255,0.010172,60118.0,60117.0,1.0931173]
[1728599543467,0.010172,60118.0,60117.0,0.9220173]
[1728599543690,0.01304071,60118.0,60117.0,0.9220173]
[1728599544153,0.010172,60118.0,60117.0,1.1021173]
[1728599544385,0.0002,60119.0,60118.0,0.429805]
[1728599544604,0.0002,60119.0,60118.0,0.72469434]
[1728599544821,0.0002,60119.0,60118.0,0.5991143]
[1728599545038,0.0002,60119.0,60118.0,0.72469434]
[1728599545910,0.0012,60119.0,60118.0,0.73869434]
[1728599547391,0.0022,60119.0,60118.0,0.74469434]
[1728599548552,0.0022,60119.0,60118.0,0.81043377]
[1728599551541,0.003832,60119.0,60118.0,0.81043377]
[1728599552182,0.003832,60119.0,60118.0,1.00175324]
[1728599553528,0.003832,60119.0,60118.0,0.81043377]
[1728599554886,0.003832,60119.0,60118.0,0.81708677]
[1728599558712,0.003832,60119.0,60118.0,0.86643655]
[1728599559238,0.003832,60119.0,60118.0,1.36643655]
[1728599560555,0.003832,60119.0,60118.0,1.55775602]
[1728599560754,0.003832,60119.0,60118.0,1.36643655]
[1728599560926,0.003832,60119.0,60118.0,1.31708677]
[1728599563754,0.003832,60119.0,60118.0,1.31790277]
[1728599568389,0.003832,60119.0,60118.0,1.44138536]
[1728599569252,0.003832,60119.0,60118.0,1.63470483]
[1728599569461,0.003832,60119.0,60118.0,1.63270483]
[1728599570367,0.003832,60119.0,60118.0,1.50115233]
[1728599570821,0.003832,60119.0,60118.0,1.37766974]
[1728599572161,0.003832,60119.0,60118.0,1.50121925]
[1728599572374,0.003832,60119.0,60118.0,1.37766974]
[1728599572605,0.003832,60119.0,60118.0,1.50121925]
[1728599573251,0.003832,60119.0,60118.0,1.40431925]
[1728599575182,0.003832,60119.0,60118.0,1.28076974]
[1728599576474,0.003832,60119.0,60118.0,1.40433347]
[1728599578654,0.003832,60119.0,60118.0,1.45588554]
[1728599580602,0.003832,60119.0,60118.0,1.24714232]
[1728599580822,0.003832,60119.0,60118.0,0.99592178]
[1728599581034,0.003832,60119.0,60118.0,0.9464833]
[1728599581256,0.003832,60119.0,60118.0,0.99592255]
[1728599581470,0.003832,60119.0,60118.0,1.07452095]
[1728599581690,0.003832,60119.0,60118.0,1.17338335]
[1728599581922,0.003832,60119.0,60118.0,1.07452095]
[1728599583232,0.003832,60119.0,60118.0,0.94897773]
[1728599583451,0.003832,60119.0,60118.0,1.07255574]
[1728599584097,0.003832,60119.0,60118.0,1.19809896]
[1728599586073,0.003832,60119.0,60118.0,1.07452095]
[1728599590227,0.003832,60119.0,60118.0,1.12607183]
[1728599590917,0.003832,60119.0,60118.0,1.07452095]
[1728599591368,0.4,60134.0,60118.0,1.07452095]
[1728599591369,0.26951165,60175.0,60118.0,1.07452095]
[1728599591598,0.149611,60156.0,60151.0,0.149621]
[1728599591814,0.12554322,60164.0,60149.0,0.299255]
[1728599592039,0.27512822,60167.0,60157.0,0.149606]
[1728599592284,0.299161,60169.0,60152.0,0.299237]
[1728599592285,0.12554322,60164.0,60152.0,0.299237]
[1728599592496,0.12554322,60164.0,60158.0,0.149604]
[1728599592705,0.12554322,60164.0,60156.0,0.24974609]
[1728599592921,0.0124606,60163.0,60158.0,0.149605]
[1728599593144,0.0124606,60162.0,60159.0,0.149602]
[1728599593361,0.0124606,60161.0,60159.0,0.149602]
[1728599593600,0.0124606,60160.0,60159.0,0.149602]
[1728599593809,0.0124606,60160.0,60158.0,0.149605]
[1728599594015,0.0124606,60159.0,60158.0,0.149605]
[1728599594449,0.1877606,60159.0,60158.0,0.149605]
[1728599595091,0.1877606,60159.0,60158.0,0.150605]
[1728599595307,0.1753,60159.0,60158.0,0.3199143]
[1728599595526,0.18774732,60159.0,60158.0,0.3199143]
[1728599596193,0.18774732,60159.0,60158.0,0.3209143]
[1728599596194,0.19774732,60159.0,60158.0,0.3209143]
[1728599596406,0.19774732,60159.0,60158.0,0.151605]
[1728599597744,0.19856332,60159.0,60158.0,0.151605]
[1728599598598,0.19854371,60159.0,60158.0,0.151605]
[1728599600932,0.19854371,60159.0,60158.0,0.57066039]
[1728599601395,0.186116,60159.0,60158.0,0.3209143]
[1728599602948,0.186116,60159.0,60158.0,0.151606]
[1728599609632,0.186116,60159.0,60158.0,0.153236]
[1728599613869,0.186116,60159.0,60158.0,0.00363]
[1728599614075,0.19853785,60159.0,60158.0,0.00363]
[1728599614510,0.20135903,60159.0,60158.0,0.00363]
[1728599614711,0.19853785,60159.0,60158.0,0.25337609]
[1728599614951,0.19853785,60159.0,60158.0,0.40298209]
[1728599615161,0.19853785,60159.0,60158.0,0.153236]
[1728599616249,0.19854414,60159.0,60158.0,0.153236]
[1728599618111,0.19854414,60159.0,60158.0,0.00363]
[1728599618531,0.19854414,60159.0,60158.0,0.00273]
[1728599618744,0.19854414,60159.0,60158.0,0.00263]
[1728599618975,0.20167972,60159.0,60158.0,0.00263]
[1728599619407,0.20167972,60159.0,60158.0,0.00193]
[1728599619626,0.20167972,60159.0,60158.0,0.00173]
[1728599619860,0.20169912,60159.0,60158.0,0.00173]
[1728599620067,0.20169912,60159.0,60158.0,0.00163]
[1728599620292,0.20169912,60159.0,60158.0,0.00103]
[1728599620482,0.20169912,60159.0,60158.0,0.00093]
[1728599620806,0.20169912,60159.0,60158.0,0.00073]
[1728599621028,0.20170725,60159.0,60158.0,0.00033]
[1728599621256,0.20170725,60159.0,60158.0,3e-05]
[1728599621684,0.20170725,60159.0,60155.0,0.149343]
[1728599621887,0.01245567,60158.0,60155.0,0.149043]
[1728599622104,0.0155869,60157.0,60154.0,0.299228]
[1728599622311,0.01245567,60156.0,60155.0,0.149612]
[1728599622516,0.01558473,60156.0,60155.0,0.149312]
[1728599622734,0.01558473,60156.0,60155.0,0.150212]
[1728599623400,0.00312906,60156.0,60155.0,0.150212]
[1728599623619,0.0165994,60156.0,60155.0,0.150212]
[1728599623829,0.01347034,60156.0,60155.0,0.150212]
[1728599624049,0.0175994,60156.0,60155.0,0.149212]
[1728599624238,0.0175994,60156.0,60155.0,0.150212]
[1728599624447,0.0295994,60156.0,60155.0,0.001]
[1728599625014,0.0175994,60156.0,60154.0,0.149614]
[1728599625229,0.01712906,60156.0,60155.0,0.001]
[1728599625453,0.01646934,60156.0,60155.0,0.150613]
[1728599625666,0.0195984,60156.0,60155.0,0.150613]
[1728599625870,0.0195984,60156.0,60155.0,0.149613]
[1728599625871,0.0155984,60156.0,60155.0,0.149613]
[1728599626235,0.0165984,60156.0,60155.0,0.149613]
[1728599626436,0.0155984,60156.0,60155.0,0.149613]
[1728599626946,0.0165984,60156.0,60155.0,0.149613]
[1728599627151,0.0215984,60156.0,60155.0,0.149613]
[1728599627762,0.0165984,60156.0,60155.0,0.149613]
[1728599627977,0.0215984,60156.0,60155.0,0.150613]
[1728599629586,0.01846934,60156.0,60155.0,0.150613]
[1728599630652,0.01846828,60156.0,60155.0,0.150613]
[1728599633338,0.01846828,60156.0,60155.0,0.152243]
[1728599633597,0.01928328,60156.0,60155.0,0.152243]
[1728599634322,0.006815,60156.0,60155.0,0.152243]
[1728599634534,0.03175148,60156.0,60155.0,0.152243]
[1728599634920,0.03175148,60156.0,60155.0,0.00263]
[1728599635184,0.03487974,60156.0,60155.0,0.00263]
[1728599636353,0.03487974,60156.0,60155.0,0.152243]
[1728599636803,0.03175148,60156.0,60155.0,0.152243]
[1728599637955,0.01928324,60156.0,60155.0,0.152243]
[1728599638192,0.03175156,60156.0,60155.0,0.152243]
[1728599641092,0.0317534,60156.0,60155.0,0.152243]
[1728599643951,0.01428516,60156.0,60155.0,0.151243]
[1728599644156,0.01328516,60156.0,60155.0,0.151243]
[1728599644361,0.01828516,60156.0,60155.0,0.152243]
[1728599645428,0.01828516,60156.0,60155.0,0.233543]
[1728599645638,0.01328516,60156.0,60155.0,0.232543]
[1728599645842,0.01828516,60156.0,60155.0,0.233543]
[1728599646047,0.01828516,60156.0,60155.0,0.234543]
[1728599646551,0.01828516,60156.0,60155.0,0.4038523]
[1728599646987,0.01828516,60156.0,60155.0,0.4088523]
[1728599647201,0.01828516,60156.0,60155.0,0.6006523]
[1728599647409,0.005815,60156.0,60155.0,0.6006523]
[1728599647882,0.005815,60156.0,60155.0,0.65008058]
[1728599648091,0.005815,60156.0,60155.0,0.65005245]
[1728599648298,0.005815,60156.0,60155.0,0.64905245]
[1728599648506,0.000815,60156.0,60155.0,0.5986523]
[1728599648684,0.000815,60156.0,60155.0,0.6036523]
[1728599648922,0.005815,60156.0,60155.0,0.5986523]
[1728599649143,0.005815,60156.0,60155.0,0.6116523]
[1728599649322,0.000815,60156.0,60155.0,0.6116523]
[1728599649471,0.000815,60156.0,60155.0,0.6156523]
[1728599652290,0.000815,60156.0,60155.0,1.1156523]
[1728599652933,0.000815,60156.0,60155.0,1.18975253]
[1728599653393,0.000815,60156.0,60155.0,1.1156523]
[1728599659163,0.000815,60156.0,60155.0,1.0238523]
[1728599659400,0.000815,60156.0,60155.0,0.9425523]
[1728599660360,0.000815,60156.0,60155.0,0.8425523]
[1728599662978,0.01326094,60156.0,60155.0,0.8425523]
[1728599663668,0.01326094,60156.0,60155.0,0.668243]
[1728599664559,0.01326094,60156.0,60155.0,0.655243]
[1728599664791,0.01326094,60156.0,60155.0,0.658243]
[1728599665006,0.002815,60156.0,60155.0,0.651243]
[1728599665226,0.01526226,60156.0,60155.0,0.651243]
[1728599665442,0.01526226,60156.0,60155.0,0.655243]
[1728599665648,0.01326226,60156.0,60155.0,0.655243]
[1728599665887,0.01826226,60156.0,60155.0,0.660243]
[1728599666122,0.01826226,60156.0,60155.0,0.655243]
[1728599667223,0.01826226,60156.0,60155.0,0.660243]
[1728599667482,0.01826226,60156.0,60155.0,0.655243]
[1728599668242,0.005815,60156.0,60155.0,0.655243]
[1728599668725,0.01826586,60156.0,60155.0,0.655243]
[1728599670395,0.01826586,60156.0,60155.0,0.660243]
[1728599671563,0.01826586,60156.0,60155.0,0.50563]
[1728599671564,0.21129405,60156.0,60155.0,0.50563]
[1728599671811,0.34337973,60156.0,60155.0,0.50563]
[1728599672482,0.34150295,60156.0,60155.0,0.50563]
[1728599672700,0.32904922,60156.0,60155.0,0.50163]
[1728599672925,0.50434922,60156.0,60155.0,0.50163]
[1728599673156,0.32904922,60156.0,60155.0,0.50163]
[1728599673658,0.32904922,60156.0,60155.0,0.50263]
[1728599674378,0.33404922,60156.0,60155.0,0.50263]
[1728599674878,0.32904922,60156.0,60155.0,0.50263]
[1728599675362,0.34304922,60156.0,60155.0,0.00363]
[1728599685694,0.46650505,60156.0,60155.0,0.00363]
[1728599686155,0.63581435,60156.0,60155.0,0.00363]
[1728599687086,0.62181435,60156.0,60155.0,0.00263]
[1728599687320,0.63081435,60156.0,60155.0,0.00263]
[1728599687590,0.63681435,60156.0,60155.0,0.00363]
[1728599687823,0.62781435,60156.0,60155.0,0.00263]
[1728599688091,0.62781435,60156.0,60155.0,0.00363]
[1728599688350,0.63681435,60156.0,60155.0,0.00363]
[1728599699513,0.28774922,60156.0,60155.0,0.00363]
[1728599699744,0.28974922,60156.0,60155.0,0.00363]
[1728599701334,0.01893822,60156.0,60155.0,0.00363]
[1728599701561,0.16854922,60156.0,60155.0,0.00363]
[1728599702453,0.17054922,60156.0,60155.0,0.00363]
[1728599707360,0.16854922,60156.0,60155.0,0.00363]
[1728599709545,0.17054922,60156.0,60155.0,0.00363]
[1728599710782,0.22024852,60156.0,60155.0,0.00363]
[1728599711613,0.24524099,60156.0,60155.0,0.00363]
[1728599713375,0.17054922,60156.0,60155.0,0.00363]
[1728599714203,0.34196097,60156.0,60155.0,0.00363]
[1728599714644,0.29313824,60156.0,60155.0,0.00363]
[1728599715469,0.19354922,60156.0,60155.0,0.00363]
[1728599716324,0.36686223,60156.0,60155.0,0.00363]
[1728599716551,0.3180355,60156.0,60155.0,0.00363]
[1728599717008,0.19354922,60156.0,60155.0,0.00363]
[1728599717498,0.31622711,60156.0,60155.0,0.00363]
[1728599717727,0.19154922,60156.0,60155.0,0.00363]
[1728599720577,0.16854922,60156.0,60155.0,0.00363]
[1728599721064,0.26829749,60156.0,60155.0,0.00363]
[1728599722427,0.16854922,60156.0,60155.0,0.00363]
[1728599722638,0.01893822,60156.0,60155.0,0.327243]
[1728599723267,0.015815,60156.0,60155.0,0.327243]
[1728599723483,0.000815,60156.0,60155.0,0.325243]
[1728599723702,0.005815,60156.0,60155.0,0.325243]
[1728599723952,0.012815,60156.0,60155.0,0.326243]
[1728599724450,0.000815,60156.0,60155.0,0.325243]
[1728599724657,0.007815,60156.0,60155.0,0.326243]
[1728599724859,0.007815,60156.0,60155.0,0.08513]
[1728599724860,0.0107626,60156.0,60155.0,0.08513]
[1728599725066,0.007815,60156.0,60155.0,0.08513]
[1728599725531,0.0107626,60156.0,60155.0,0.08513]
[1728599726270,0.0127626,60156.0,60155.0,0.08513]
[1728599726508,0.0057626,60156.0,60155.0,0.08413]
[1728599726733,0.0157626,60156.0,60155.0,0.08513]
[1728599726964,0.0157626,60156.0,60155.0,0.234743]
[1728599727844,0.012815,60156.0,60155.0,0.234743]
[1728599730980,0.0157626,60156.0,60155.0,0.234743]
[1728599731863,0.01845002,60156.0,60155.0,0.234743]
[1728599732507,0.01845002,60156.0,60155.0,0.08513]
[1728599733185,0.01845002,60156.0,60155.0,0.234743]
[1728599734098,0.01845002,60156.0,60155.0,0.08513]
[1728599734317,0.01845002,60156.0,60155.0,0.00263]
[1728599734577,0.01845002,60156.0,60155.0,0.152243]
[1728599736317,0.01550242,60156.0,60155.0,0.243143]
[1728599736538,0.012815,60156.0,60155.0,0.243143]
[1728599739183,0.0189213,60156.0,60155.0,0.243143]
[1728599742194,0.0189213,60156.0,60155.0,0.318543]
[1728599742625,0.012815,60156.0,60155.0,0.318543]
[1728599744224,0.012815,60156.0,60155.0,0.4878523]
[1728599746825,0.012815,60156.0,60155.0,0.4928523]
[1728599750536,0.010815,60156.0,60155.0,0.4928523]
[1728599750978,0.010815,60156.0,60155.0,0.5048523]
[1728599751411,0.000815,60156.0,60155.0,0.5038523]
[1728599751868,0.126205,60171.0,60167.0,0.149583]
[1728599752291,0.00585778,60170.0,60167.0,0.149583]
[1728599753295,0.00585778,60170.0,60167.0,0.150583]
[1728599753531,0.00685778,60170.0,60167.0,0.150583]
[1728599754478,0.00685778,60170.0,60167.0,0.149583]
[1728599754700,0.01585778,60170.0,60167.0,0.150583]
[1728599756308,0.01585778,60170.0,60168.0,0.14958]
[1728599756517,0.01585778,60170.0,60167.0,0.150582]
[1728599757627,0.00685778,60170.0,60167.0,0.149582]
[1728599757852,0.01685778,60170.0,60168.0,0.001]
[1728599758297,0.00585778,60170.0,60167.0,0.149582]
[1728599758519,0.00585778,60170.0,60167.0,0.150582]
[1728599758721,0.01485778,60170.0,60167.0,0.150582]
[1728599758929,0.01685778,60170.0,60167.0,0.150582]
[1728599759162,0.00785778,60170.0,60167.0,0.149582]
[1728599759397,0.01785778,60170.0,60168.0,0.001]
[1728599759607,0.01667378,60170.0,60168.0,0.001]
[1728599759818,0.01767378,60170.0,60168.0,0.001]
[1728599760025,0.149578,60169.0,60168.0,0.001]
[1728599760462,0.00586797,60169.0,60168.0,0.001]
[1728599760685,0.00586797,60169.0,60167.0,0.149583]
[1728599760891,0.00586797,60169.0,60167.0,0.150583]
[1728599761316,0.00586797,60169.0,60167.0,0.149583]
[1728599761527,0.00586797,60169.0,60168.0,0.001]
[1728599761734,0.01586797,60169.0,60168.0,0.001]
[1728599762145,0.00686797,60169.0,60167.0,0.149583]
[1728599762368,0.01586797,60169.0,60167.0,0.150583]
[1728599762794,0.01486797,60169.0,60167.0,0.001]
[1728599763281,0.01686797,60169.0,60167.0,0.001]
[1728599764335,0.00586797,60169.0,60166.0,0.149585]
[1728599764575,0.01586797,60169.0,60168.0,0.001]
[1728599764779,0.01686797,60169.0,60168.0,0.001]
[1728599764993,0.01686797,60169.0,60166.0,0.149585]
[1728599765213,0.00686797,60169.0,60168.0,0.0001]
[1728599765439,0.01486797,60169.0,60168.0,0.0001]
[1728599766359,0.01686797,60169.0,60168.0,0.75113639]
[1728599766569,0.01686797,60169.0,60168.0,0.6013903]
[1728599766570,0.011,60169.0,60168.0,0.6013903]
[1728599767013,0.002,60169.0,60168.0,0.6013903]
[1728599767224,0.01,60169.0,60168.0,0.6013903]
[1728599767669,0.000816,60170.0,60169.0,0.154578]
[1728599767911,0.000816,60170.0,60169.0,0.60131081]
[1728599768120,0.000816,60170.0,60169.0,0.5979873]
[1728599768349,0.000816,60170.0,60169.0,0.6029873]
[1728599768566,0.000816,60170.0,60169.0,0.6079873]
[1728599769456,0.000816,60170.0,60169.0,0.6099873]
[1728599769703,0.000816,60170.0,60169.0,0.6049873]
[1728599769929,0.000816,60170.0,60169.0,0.6059873]
[1728599770142,0.006816,60170.0,60169.0,0.5999873]
[1728599774363,0.006816,60170.0,60169.0,1.0999873]
[1728599781488,0.006816,60170.0,60169.0,1.10248009]
[1728599781694,0.006816,60170.0,60169.0,1.0999873]
[1728599783516,0.006816,60170.0,60169.0,1.0019873]
[1728599783720,0.006816,60170.0,60169.0,0.9019873]
[1728599784999,0.006816,60170.0,60169.0,0.8258873]
[1728599785869,0.006816,60170.0,60169.0,0.651578]
[1728599786500,0.01245885,60170.0,60169.0,0.651578]
[1728599786921,0.01245885,60170.0,60169.0,0.503]
[1728599787130,0.01245885,60170.0,60169.0,0.652578]
[1728599787766,0.00645885,60170.0,60169.0,0.649578]
[1728599787983,0.01345885,60170.0,60169.0,0.502]
[1728599788198,0.01345885,60170.0,60169.0,0.501]
[1728599788624,0.01845885,60170.0,60169.0,0.501]
[1728599789264,0.01145885,60170.0,60169.0,0.5]
[1728599789470,0.02345885,60170.0,60169.0,0.5]
[1728599791319,0.17303485,60170.0,60169.0,0.5]
[1728599791956,0.34413485,60170.0,60169.0,0.5]
[1728599792818,0.19455885,60170.0,60169.0,0.5]
[1728599793033,0.11885885,60170.0,60169.0,0.5]
[1728599793249,0.02345885,60170.0,60169.0,0.649578]
[1728599793453,0.02345885,60170.0,60169.0,0.149578]
[1728599795245,0.02345885,60170.0,60169.0,0.15121]
[1728599795875,0.02345885,60170.0,60169.0,0.001632]
[1728599798887,0.02345885,60170.0,60169.0,0.15121]
[1728599799319,0.02345885,60170.0,60169.0,0.001632]
[1728599802455,0.17303485,60170.0,60169.0,0.001632]
[1728599803859,0.02345885,60170.0,60169.0,0.001632]
[1728599806480,0.17303485,60170.0,60169.0,0.001632]
[1728599807193,0.02345885,60170.0,60169.0,0.001632]
[1728599808419,0.02345885,60170.0,60169.0,0.15121]
[1728599808658,0.017816,60170.0,60169.0,0.15121]
[1728599810339,0.017816,60170.0,60169.0,0.4044193]
[1728599811711,0.29908,60185.0,60169.0,0.4044193]
[1728599811712,0.000815,60187.0,60186.0,0.236136]
[1728599811967,0.000815,60187.0,60186.0,0.4987453]
[1728599813433,0.002815,60187.0,60186.0,0.236136]
[1728599813645,0.000815,60187.0,60186.0,0.154536]
[1728599813905,0.000815,60187.0,60186.0,0.168536]
[1728599814094,0.008815,60187.0,60186.0,0.155536]
[1728599814309,0.008815,60187.0,60186.0,0.150536]
[1728599814521,0.000815,60187.0,60186.0,0.167536]
[1728599814731,0.000815,60187.0,60186.0,0.160536]
[1728599814732,0.001815,60187.0,60186.0,0.160536]
[1728599815243,0.001815,60187.0,60186.0,0.166536]
[1728599815657,0.000815,60187.0,60186.0,0.160536]
[1728599816569,0.000815,60187.0,60186.0,0.155536]
[1728599816777,0.000815,60187.0,60186.0,0.160536]
[1728599820127,0.000815,60187.0,60186.0,0.006]
[1728599820774,0.000815,60187.0,60186.0,0.160536]
[1728599826576,0.000815,60187.0,60186.0,0.160536]
[1728599830776,0.000815,60187.0,60186.0,0.3298453]
[1728599831018,0.000815,60187.0,60186.0,0.4246453]
[1728599832519,0.000815,60187.0,60186.0,0.9246453]
[1728599840679,0.000815,60187.0,60186.0,0.660536]
[1728599848354,0.000815,60187.0,60186.0,1.0120453]
[1728599851156,0.000815,60187.0,60186.0,1.1220453]
[1728599852244,0.000815,60187.0,60186.0,1.1160453]
[1728599852698,0.000815,60187.0,60186.0,1.1300453]
[1728599853957,0.001815,60187.0,60186.0,1.1440453]
[1728599854592,0.001815,60187.0,60186.0,1.1300453]
[1728599854593,0.000815,60187.0,60186.0,1.1300453]
[1728599854815,0.001815,60187.0,60186.0,1.1440453]
[1728599855690,0.001815,60187.0,60186.0,1.15658044]
[1728599856640,0.001815,60187.0,60186.0,1.20590004]
[1728599857262,0.001815,60187.0,60186.0,1.20604235]
[1728599857470,0.001815,60187.0,60186.0,1.23077331]
[1728599858233,0.046,60200.0,60198.0,0.333206]
[1728599858446,0.046,60200.0,60198.0,0.65194438]
[1728599858659,0.046,60200.0,60198.0,0.65194377]
[1728599858879,0.046,60200.0,60198.0,0.6025153]
[1728599859753,0.046,60200.0,60198.0,0.85926139]
[1728599859965,0.046,60200.0,60198.0,0.90868986]
[1728599860168,0.046,60200.0,60198.0,0.65894377]
[1728599860388,1e-06,60200.0,60199.0,0.340804]
[1728599860598,1e-06,60200.0,60199.0,0.6117133]
[1728599861022,1e-06,60200.0,60199.0,0.68576597]
[1728599861237,3e-07,60204.0,60203.0,0.159494]
[1728599861443,3e-07,60204.0,60203.0,0.4288033]
[1728599862119,0.02060115,60206.0,60205.0,0.259489]
[1728599862325,0.02060115,60206.0,60205.0,0.5150983]
[1728599863144,0.02060115,60206.0,60205.0,0.5175897]
[1728599863347,0.02060115,60206.0,60205.0,0.5315897]
[1728599864366,0.02060115,60206.0,60205.0,1.0315897]
[1728599864573,0.02060115,60206.0,60205.0,1.0455897]
[1728599865007,0.02141715,60206.0,60205.0,1.0455897]
[1728599868485,0.02141715,60206.0,60205.0,1.0330983]
[1728599868662,0.02141715,60206.0,60205.0,0.9517983]
[1728599877920,0.02141715,60206.0,60205.0,0.9534283]
[1728599885941,0.02141715,60206.0,60205.0,1.1235283]
[1728599886097,0.02141715,60206.0,60205.0,0.9534283]
[1728599892184,0.02141715,60206.0,60205.0,1.07865692]
[1728599892583,0.02141715,60206.0,60205.0,0.9534283]
[1728599894814,0.20466866,60206.0,60205.0,0.679119]
[1728599895017,0.20466866,60206.0,60205.0,0.684119]
[1728599895218,0.20916775,60206.0,60205.0,0.684119]
[1728599895539,0.20916775,60206.0,60205.0,0.670119]
[1728599896017,0.20916775,60206.0,60205.0,0.680119]
[1728599896224,0.20916775,60206.0,60205.0,0.675119]
[1728599896434,0.20916775,60206.0,60205.0,0.665119]
[1728599896641,0.20916775,60206.0,60205.0,0.658119]
[1728599896849,0.20916775,60206.0,60205.0,0.664119]
[1728599897062,0.20916775,60206.0,60205.0,0.658119]
[1728599897530,0.20916775,60206.0,60205.0,0.661119]
[1728599897739,0.20916838,60206.0,60205.0,0.661119]
[1728599899198,0.20916838,60206.0,60205.0,0.51163]
[1728599899410,0.35865438,60206.0,60205.0,0.51163]
[1728599900090,0.36065438,60206.0,60205.0,0.51163]
[1728599900308,0.36065438,60206.0,60205.0,0.50463]
[1728599900729,0.34620224,60206.0,60205.0,0.50163]
[1728599900941,0.35864456,60206.0,60205.0,0.50163]
[1728599901576,0.35864456,60206.0,60205.0,0.50263]
[1728599901780,0.35964456,60206.0,60205.0,0.50263]
[1728599901990,0.36164456,60206.0,60205.0,0.50263]
[1728599902204,0.35864456,60206.0,60205.0,0.50263]
[1728599902641,0.36064456,60206.0,60205.0,0.50263]
[1728599904198,0.34820224,60206.0,60205.0,0.50263]
[1728599904429,0.36063175,60206.0,60205.0,0.50263]
[1728599905288,0.36263175,60206.0,60205.0,0.50263]
[1728599905508,0.36263175,60206.0,60205.0,0.00263]
[1728599907451,0.35020224,60206.0,60205.0,0.00263]
[1728599907683,0.7842086,60206.0,60205.0,0.00263]
[1728599908118,0.93383128,60206.0,60205.0,0.00263]
[1728599908551,0.95683128,60206.0,60205.0,0.00263]
[1728599909628,0.95483128,60206.0,60205.0,0.00263]
[1728599909854,0.9052086,60206.0,60205.0,0.00163]
[1728599910114,0.78216168,60206.0,60205.0,0.00263]
[1728599911480,0.78716168,60206.0,60205.0,0.00363]
[1728599912163,0.95660438,60206.0,60205.0,0.00363]
[1728599913395,0.95659426,60206.0,60205.0,0.00363]
[1728599913635,1.00621694,60206.0,60205.0,0.00363]
[1728599913881,1.03106674,60206.0,60205.0,0.00363]
[1728599914134,1.0558909,60206.0,60205.0,0.00363]
[1728599914620,1.05587439,60206.0,60205.0,0.00363]
[1728599914868,0.95159426,60206.0,60205.0,0.00263]
[1728599915117,0.95859426,60206.0,60205.0,0.00363]
[1728599915618,1.0508557,60206.0,60205.0,0.00263]
[1728599915871,1.0538557,60206.0,60205.0,0.00263]
[1728599916122,0.318324,60191.0,60190.0,0.24974609]
[1728599916358,0.74827332,60191.0,60190.0,0.24974609]
[1728599916589,0.75273067,60191.0,60190.0,0.24974609]
[1728599917078,0.75273067,60191.0,60183.0,0.24974609]
[1728599917079,0.318341,60184.0,60183.0,0.24974609]
[1728599917324,0.74684582,60184.0,60183.0,0.24974609]
[1728599917586,0.50250747,60184.0,60183.0,0.24974609]
[1728599917806,0.47819509,60184.0,60176.0,0.54886509]
[1728599918054,0.27477762,60181.0,60177.0,0.149556]
[1728599918295,0.0124114,60180.0,60177.0,0.149556]
[1728599918542,0.0124114,60179.0,60177.0,0.149556]
[1728599918797,0.01684589,60178.0,60177.0,0.149556]
[1728599919351,0.01684589,60178.0,60177.0,0.149558]
[1728599919583,0.0124114,60178.0,60177.0,0.149558]
[1728599919821,0.12522862,60184.0,60176.0,0.32874609]
[1728599920043,0.01240046,60183.0,60181.0,0.149548]
[1728599920261,0.01240046,60182.0,60181.0,0.149548]
[1728599920706,0.01684185,60182.0,60181.0,0.149548]
[1728599921340,0.01684185,60182.0,60180.0,0.149551]
[1728599921564,0.01240016,60181.0,60180.0,0.149551]
[1728599921988,0.01684028,60181.0,60180.0,0.149551]
[1728599922208,0.01684028,60181.0,60178.0,0.149554]
[1728599922423,0.01240016,60180.0,60179.0,0.149552]
[1728599922865,0.01683459,60180.0,60179.0,0.149552]
[1728599923117,0.01683459,60180.0,60177.0,0.299116]
[1728599923348,0.00443443,60180.0,60179.0,0.149553]
[1728599923584,0.01683886,60180.0,60179.0,0.149553]
[1728599923808,0.01783886,60180.0,60179.0,0.149553]
[1728599924029,0.01683886,60180.0,60179.0,0.149553]
[1728599924241,0.01683886,60180.0,60178.0,0.149556]
[1728599924454,0.01240443,60179.0,60178.0,0.149556]
[1728599924940,0.0168373,60179.0,60178.0,0.149556]
[1728599925824,0.0178373,60179.0,60178.0,0.151556]
[1728599926255,0.0178373,60179.0,60178.0,0.002]
[1728599926476,0.0178373,60179.0,60178.0,0.151556]
[1728599926720,0.0178373,60179.0,60178.0,0.002]
[1728599927607,0.1673903,60179.0,60178.0,0.002]
[1728599928060,0.0178373,60179.0,60178.0,0.002]
[1728599928486,0.0168373,60179.0,60176.0,0.14956]
[1728599928705,0.00443287,60179.0,60178.0,0.002]
[1728599928916,0.01684901,60179.0,60178.0,0.002]
[1728599929136,0.01984901,60179.0,60178.0,0.002]
[1728599929389,0.01684901,60179.0,60175.0,0.24974609]
[1728599929611,0.01241614,60178.0,60176.0,0.15156]
[1728599930041,0.00442904,60177.0,60176.0,0.15156]
[1728599930258,0.01684518,60177.0,60176.0,0.15156]
[1728599930927,0.01684518,60177.0,60176.0,0.14956]
[1728599931585,0.01684518,60177.0,60175.0,0.39930809]
[1728599931802,0.01241614,60176.0,60175.0,0.149562]
[1728599932148,0.01684267,60176.0,60175.0,0.149562]
[1728599932596,0.01684267,60176.0,60175.0,0.151562]
[1728599933851,0.01685049,60176.0,60175.0,0.149562]
[1728599934044,0.01685049,60176.0,60175.0,0.151562]
[1728599934278,0.01785049,60176.0,60175.0,0.151562]
[1728599937343,0.01785877,60176.0,60175.0,0.151562]
[1728599944692,0.01785877,60176.0,60175.0,0.28179062]
[1728599944920,0.01785877,60176.0,60175.0,0.45619062]
[1728599945117,0.01343224,60176.0,60175.0,0.45619062]
[1728599945704,0.01343224,60176.0,60175.0,0.63049992]
[1728599946116,0.01443224,60176.0,60175.0,0.64149992]
[1728599946363,0.002,60176.0,60175.0,0.64149992]
[1728599946786,0.001,60176.0,60175.0,0.64113192]
[1728599946975,0.01345965,60176.0,60175.0,0.64113192]
[1728599947174,0.01445965,60176.0,60175.0,0.64713192]
[1728599948491,0.002,60176.0,60175.0,0.64713192]